[Event "Titled Tuesday Blitz March 14 Early 2023"]
[White "Fabris, Alberto"]
[Black "Buksa, Nataliya"]
[WhiteFideId "801348"]
[BlackFideId "14123622"]
[WhiteElo "2182"]
[BlackElo "2316"]
[Result "0-1"]
[Round "02"]
[TimeControl "180+2"]
[Date "2023.03.14"]
[WhiteClock "0:00:01"]
[BlackClock "0:00:09"]

1. e4 {[%clk 0:03:00]}  c5 {[%clk 0:02:59]} 2. Nf3 {[%clk 0:03:00]}  a6 {[%clk 0:02:58]} 3. c4 {[%clk 0:02:59]}  Nc6 {[%clk 0:02:58]} 4. d4 {[%clk 0:02:58]}  cxd4 {[%clk 0:02:58]} 5. Nxd4 {[%clk 0:02:59]}  e5 {[%clk 0:02:58]} 6. Nc2 {[%clk 0:02:53]}  Nf6 {[%clk 0:02:56]} 7. Nc3 {[%clk 0:02:52]}  Bc5 {[%clk 0:02:57]} 8. Be2 {[%clk 0:02:50]}  h6 {[%clk 0:02:57]} 9. O-O {[%clk 0:02:49]}  d6 {[%clk 0:02:57]} 10. Be3 {[%clk 0:02:37]}  O-O {[%clk 0:02:56]} 11. a3 {[%clk 0:02:31]}  a5 {[%clk 0:02:32]} 12. Kh1 {[%clk 0:02:24]}  a4 {[%clk 0:02:21]} 13. Bxc5 {[%clk 0:01:55]}  dxc5 {[%clk 0:02:19]} 14. Ne3 {[%clk 0:01:53]}  Nd4 {[%clk 0:02:17]} 15. Rc1 {[%clk 0:01:40]}  Qb6 {[%clk 0:02:00]} 16. Rb1 {[%clk 0:01:22]}  Rd8 {[%clk 0:01:59]} 17. Ned5 {[%clk 0:01:20]}  Nxd5 {[%clk 0:01:58]} 18. Nxd5 {[%clk 0:01:19]}  Qb3 {[%clk 0:01:47]} 19. Qxb3 {[%clk 0:01:09]}  Nxb3 {[%clk 0:01:43]} 20. Rbd1 {[%clk 0:01:07]}  Be6 {[%clk 0:01:24]} 21. Rd3 {[%clk 0:00:52]}  Nd4 {[%clk 0:01:23]} 22. Bd1 {[%clk 0:00:50]}  Bxd5 {[%clk 0:01:17]} 23. cxd5 {[%clk 0:00:45]}  b5 {[%clk 0:01:16]} 24. f4 {[%clk 0:00:37]}  f6 {[%clk 0:01:15]} 25. Bg4 {[%clk 0:00:34]}  b4 {[%clk 0:00:36]} 26. Rc1 {[%clk 0:00:24]}  Ra5 {[%clk 0:00:20]} 27. g3 {[%clk 0:00:22]}  f5 {[%clk 0:00:12]} 28. Bxf5 {[%clk 0:00:20]}  Nxf5 {[%clk 0:00:13]} 29. exf5 {[%clk 0:00:20]}  e4 {[%clk 0:00:13]} 30. Re3 {[%clk 0:00:18]}  Rxd5 {[%clk 0:00:14]} 31. Rxe4 {[%clk 0:00:18]}  Rxf5 {[%clk 0:00:14]} 32. Kg2 {[%clk 0:00:18]}  Rb5 {[%clk 0:00:14]} 33. Rec4 {[%clk 0:00:16]}  bxa3 {[%clk 0:00:14]} 34. bxa3 {[%clk 0:00:16]}  Rb2+ {[%clk 0:00:14]} 35. R1c2 {[%clk 0:00:16]}  Rb3 {[%clk 0:00:14]} 36. Rxa4 {[%clk 0:00:15]}  Rd5 {[%clk 0:00:14]} 37. Ra5 {[%clk 0:00:14]}  h5 {[%clk 0:00:12]} 38. Raxc5 {[%clk 0:00:13]}  Rdd3 {[%clk 0:00:10]} 39. a4 {[%clk 0:00:12]}  Ra3 {[%clk 0:00:10]} 40. a5 {[%clk 0:00:11]}  h4 {[%clk 0:00:11]} 41. gxh4 {[%clk 0:00:07]}  Rf3 {[%clk 0:00:11]} 42. f5 {[%clk 0:00:06]}  Rf4 {[%clk 0:00:10]} 43. h5 {[%clk 0:00:02]}  Rg4+ {[%clk 0:00:10]} 44. Kf2 {[%clk 0:00:02]}  Rh4 {[%clk 0:00:11]} 45. Kg2 {[%clk 0:00:02]}  Rg4+ {[%clk 0:00:10]} 46. Kf2 {[%clk 0:00:02]}  Rh4 {[%clk 0:00:10]} 47. Kg2 {[%clk 0:00:02]}  Rxh5 {[%clk 0:00:09]} 48. Rc8+ {[%clk 0:00:01]}  Kh7 {[%clk 0:00:09]} 49. f6 {[%clk 0:00:02]}  Rg5+ {[%clk 0:00:09]} 50. Kf2 {[%clk 0:00:01]}  Rf5+ {[%clk 0:00:10]} 51. Kg2 {[%clk 0:00:02]}  Rxf6 {[%clk 0:00:10]} 52. R8c6 {[%clk 0:00:01]}  Rxa5 {[%clk 0:00:09]} 0-1


[Site "https://www.chess.com"]

[Event "Titled Tuesday Blitz March 14 Early 2023"]
[White "Lorenzo De La Riva, Lazaro"]
[Black "Rom, Jasper"]
[WhiteFideId "2268809"]
[BlackFideId "2023733"]
[WhiteElo "2294"]
[BlackElo "2233"]
[Result "0-1"]
[Round "02"]
[TimeControl "180+2"]
[Date "2023.03.14"]
[WhiteClock "0:00:08"]
[BlackClock "0:00:05"]

1. e4 {[%clk 0:03:00]}  e6 {[%clk 0:02:56]} 2. d4 {[%clk 0:03:00]}  d5 {[%clk 0:02:56]} 3. Nc3 {[%clk 0:03:01]}  Nf6 {[%clk 0:02:56]} 4. e5 {[%clk 0:03:01]}  Nfd7 {[%clk 0:02:56]} 5. Qg4 {[%clk 0:03:01]}  c5 {[%clk 0:02:56]} 6. Nb5 {[%clk 0:03:02]}  cxd4 {[%clk 0:02:44]} 7. f4 {[%clk 0:03:01]}  h5 {[%clk 0:02:10]} 8. Qg3 {[%clk 0:02:51]}  Bb4+ {[%clk 0:02:07]} 9. c3 {[%clk 0:02:48]}  dxc3 {[%clk 0:02:07]} 10. bxc3 {[%clk 0:02:49]}  Bf8 {[%clk 0:02:07]} 11. Nf3 {[%clk 0:02:42]}  Nc5 {[%clk 0:02:05]} 12. Nd6+ {[%clk 0:02:24]}  Bxd6 {[%clk 0:02:03]} 13. Qxg7 {[%clk 0:02:24]}  Rf8 {[%clk 0:01:45]} 14. exd6 {[%clk 0:02:21]}  Ne4 {[%clk 0:01:45]} 15. Ba3 {[%clk 0:02:07]}  Nd7 {[%clk 0:01:23]} 16. Bd3 {[%clk 0:01:50]}  Qb6 {[%clk 0:01:01]} 17. Bxe4 {[%clk 0:01:28]}  Qe3+ {[%clk 0:00:57]} 18. Kd1 {[%clk 0:01:17]}  dxe4 {[%clk 0:00:49]} 19. Nd2 {[%clk 0:00:51]}  Qd3 {[%clk 0:00:42]} 20. Kc1 {[%clk 0:00:34]}  b6 {[%clk 0:00:33]} 21. Qd4 {[%clk 0:00:28]}  Qxd4 {[%clk 0:00:32]} 22. cxd4 {[%clk 0:00:29]}  Bb7 {[%clk 0:00:32]} 23. Re1 {[%clk 0:00:27]}  f5 {[%clk 0:00:31]} 24. Kb2 {[%clk 0:00:25]}  Rg8 {[%clk 0:00:31]} 25. g3 {[%clk 0:00:24]}  h4 {[%clk 0:00:31]} 26. Re3 {[%clk 0:00:21]}  hxg3 {[%clk 0:00:30]} 27. Rxg3 {[%clk 0:00:19]}  Rh8 {[%clk 0:00:28]} 28. Rh1 {[%clk 0:00:10]}  Nf6 {[%clk 0:00:26]} 29. h4 {[%clk 0:00:09]}  Nh5 {[%clk 0:00:23]} 30. Rg5 {[%clk 0:00:08]}  Bd5 {[%clk 0:00:23]} 31. Rhg1 {[%clk 0:00:06]}  Nxf4 {[%clk 0:00:19]} 32. Rg7 {[%clk 0:00:07]}  Kd8 {[%clk 0:00:11]} 33. Rg8+ {[%clk 0:00:06]}  Kd7 {[%clk 0:00:10]} 34. Rxa8 {[%clk 0:00:05]}  Rxa8 {[%clk 0:00:08]} 35. Rg7+ {[%clk 0:00:06]}  Kc6 {[%clk 0:00:09]} 36. Rc7+ {[%clk 0:00:05]}  Kb5 {[%clk 0:00:09]} 37. d7 {[%clk 0:00:03]}  Rd8 {[%clk 0:00:05]} 38. Be7 {[%clk 0:00:04]}  Rg8 {[%clk 0:00:04]} 39. d8=Q {[%clk 0:00:04]}  Rxd8 {[%clk 0:00:04]} 40. Bxd8 {[%clk 0:00:04]}  e3 {[%clk 0:00:04]} 41. Nb3 {[%clk 0:00:02]}  e2 {[%clk 0:00:04]} 42. Rc1 {[%clk 0:00:03]}  Nd3+ {[%clk 0:00:04]} 43. Kc2 {[%clk 0:00:03]}  Nxc1 {[%clk 0:00:04]} 44. Kd2 {[%clk 0:00:03]}  Nxb3+ {[%clk 0:00:04]} 45. axb3 {[%clk 0:00:03]}  Bxb3 {[%clk 0:00:05]} 46. h5 {[%clk 0:00:02]}  Bc2 {[%clk 0:00:04]} 47. h6 {[%clk 0:00:02]}  f4 {[%clk 0:00:04]} 48. Bg5 {[%clk 0:00:02]}  f3 {[%clk 0:00:04]} 49. Be3 {[%clk 0:00:03]}  Bh7 {[%clk 0:00:03]} 50. d5 {[%clk 0:00:02]}  exd5 {[%clk 0:00:03]} 51. Bd4 {[%clk 0:00:03]}  Kc4 {[%clk 0:00:03]} 52. Bf2 {[%clk 0:00:03]}  b5 {[%clk 0:00:04]} 53. Be3 {[%clk 0:00:04]}  d4 {[%clk 0:00:04]} 54. Bf2 {[%clk 0:00:04]}  b4 {[%clk 0:00:04]} 55. Bxd4 {[%clk 0:00:05]}  Kxd4 {[%clk 0:00:04]} 56. Ke1 {[%clk 0:00:06]}  Bg6 {[%clk 0:00:03]} 57. Kf2 {[%clk 0:00:06]}  Kd3 {[%clk 0:00:03]} 58. h7 {[%clk 0:00:06]}  Bxh7 {[%clk 0:00:03]} 59. Ke1 {[%clk 0:00:07]}  Bg6 {[%clk 0:00:03]} 60. Kf2 {[%clk 0:00:08]}  Kd2 {[%clk 0:00:03]} 61. Kg3 {[%clk 0:00:06]}  e1=Q+ {[%clk 0:00:04]} 62. Kf4 {[%clk 0:00:07]}  f2 {[%clk 0:00:05]} 63. Kg3 {[%clk 0:00:07]}  f1=Q+ {[%clk 0:00:05]} 64. Kh2 {[%clk 0:00:08]}  Qef2# {[%clk 0:00:05]} 0-1


[Site "https://www.chess.com"]

[Event "Titled Tuesday Blitz March 14 Early 2023"]
[White "Gireman, Ja"]
[Black "ritanovikova"]
[WhiteFideId "5043794"]
[WhiteElo "2153"]
[BlackElo "2122"]
[Result "1-0"]
[Round "02"]
[TimeControl "180+2"]
[Date "2023.03.14"]
[WhiteClock "0:01:54"]
[BlackClock "0:00:38"]

1. d4 {[%clk 0:03:00]}  e5 {[%clk 0:02:59]} 2. dxe5 {[%clk 0:02:59]}  Nc6 {[%clk 0:02:55]} 3. Nf3 {[%clk 0:03:00]}  Qe7 {[%clk 0:02:55]} 4. e4 {[%clk 0:02:58]}  Nxe5 {[%clk 0:02:53]} 5. Nxe5 {[%clk 0:02:59]}  Qxe5 {[%clk 0:02:53]} 6. Nc3 {[%clk 0:03:00]}  Bb4 {[%clk 0:02:52]} 7. Bd3 {[%clk 0:03:00]}  d5 {[%clk 0:02:46]} 8. O-O {[%clk 0:02:59]}  d4 {[%clk 0:02:40]} 9. Nd5 {[%clk 0:02:59]}  Bd6 {[%clk 0:01:56]} 10. Bf4 {[%clk 0:02:59]}  Qe6 {[%clk 0:01:56]} 11. Nxc7+ {[%clk 0:02:47]}  Bxc7 {[%clk 0:01:57]} 12. Bxc7 {[%clk 0:02:45]}  Ne7 {[%clk 0:01:53]} 13. f4 {[%clk 0:02:38]}  O-O {[%clk 0:01:52]} 14. f5 {[%clk 0:02:38]}  Qc6 {[%clk 0:01:50]} 15. Be5 {[%clk 0:02:38]}  f6 {[%clk 0:01:47]} 16. Bxd4 {[%clk 0:02:38]}  Qd7 {[%clk 0:01:36]} 17. Bc3 {[%clk 0:02:35]}  Kh8 {[%clk 0:01:33]} 18. Rf3 {[%clk 0:02:34]}  Ng8 {[%clk 0:01:20]} 19. Rh3 {[%clk 0:02:31]}  Nh6 {[%clk 0:01:18]} 20. g4 {[%clk 0:02:29]}  Qf7 {[%clk 0:01:14]} 21. g5 {[%clk 0:02:28]}  Nxf5 {[%clk 0:01:03]} 22. exf5 {[%clk 0:02:26]}  fxg5 {[%clk 0:01:02]} 23. Qh5 {[%clk 0:02:14]}  Bxf5 {[%clk 0:00:55]} 24. Qxf7 {[%clk 0:01:56]}  Rxf7 {[%clk 0:00:56]} 25. Bxf5 {[%clk 0:01:56]}  Rxf5 {[%clk 0:00:55]} 26. Rf1 {[%clk 0:01:57]}  Raf8 {[%clk 0:00:53]} 27. Rxf5 {[%clk 0:01:56]}  Rxf5 {[%clk 0:00:54]} 28. Re3 {[%clk 0:01:57]}  h6 {[%clk 0:00:38]} 29. Re7 {[%clk 0:01:54]} 1-0


[Site "https://www.chess.com"]

[Event "Titled Tuesday Blitz March 14 Early 2023"]
[White "Nakamura, Hikaru"]
[Black "Timofeev, Artyom"]
[WhiteFideId "2016192"]
[BlackFideId "4140419"]
[WhiteElo "2879"]
[BlackElo "2586"]
[Result "1-0"]
[Round "03"]
[TimeControl "180+2"]
[Date "2023.03.14"]
[WhiteClock "0:00:17"]
[BlackClock "0:00:13"]

1. g3 {[%clk 0:03:00]}  c5 {[%clk 0:02:58]} 2. Bg2 {[%clk 0:03:00]}  Nc6 {[%clk 0:02:57]} 3. f4 {[%clk 0:02:53]}  g6 {[%clk 0:02:55]} 4. c3 {[%clk 0:02:46]}  Bg7 {[%clk 0:02:54]} 5. e4 {[%clk 0:02:46]}  d6 {[%clk 0:02:53]} 6. Nf3 {[%clk 0:02:45]}  e5 {[%clk 0:02:52]} 7. O-O {[%clk 0:02:45]}  Nge7 {[%clk 0:02:51]} 8. d3 {[%clk 0:02:44]}  O-O {[%clk 0:02:50]} 9. Be3 {[%clk 0:02:36]}  exf4 {[%clk 0:02:45]} 10. Bxf4 {[%clk 0:02:34]}  Ne5 {[%clk 0:02:40]} 11. Qe2 {[%clk 0:02:23]}  Bg4 {[%clk 0:02:38]} 12. Nbd2 {[%clk 0:02:22]}  N7c6 {[%clk 0:02:35]} 13. h3 {[%clk 0:02:17]}  Bxf3 {[%clk 0:02:33]} 14. Nxf3 {[%clk 0:02:18]}  Nxf3+ {[%clk 0:02:28]} 15. Rxf3 {[%clk 0:02:18]}  Ne5 {[%clk 0:02:25]} 16. Rff1 {[%clk 0:02:07]}  Qb6 {[%clk 0:02:24]} 17. Kh1 {[%clk 0:02:05]}  Rae8 {[%clk 0:02:21]} 18. Rad1 {[%clk 0:02:01]}  h6 {[%clk 0:02:07]} 19. Be3 {[%clk 0:01:59]}  Nc6 {[%clk 0:01:58]} 20. Qd2 {[%clk 0:01:54]}  Kh7 {[%clk 0:01:56]} 21. Rf2 {[%clk 0:01:54]}  Ne5 {[%clk 0:01:52]} 22. b3 {[%clk 0:01:29]}  Qa5 {[%clk 0:01:46]} 23. d4 {[%clk 0:01:26]}  cxd4 {[%clk 0:01:46]} 24. Bxd4 {[%clk 0:01:26]}  a6 {[%clk 0:01:39]} 25. Rdf1 {[%clk 0:01:25]}  Qc7 {[%clk 0:01:39]} 26. c4 {[%clk 0:01:23]}  Nc6 {[%clk 0:01:30]} 27. Be3 {[%clk 0:01:17]}  Ne5 {[%clk 0:01:30]} 28. Rd1 {[%clk 0:01:15]}  Re6 {[%clk 0:01:27]} 29. Qd5 {[%clk 0:01:15]}  Rfe8 {[%clk 0:01:19]} 30. Bf4 {[%clk 0:01:12]}  Kg8 {[%clk 0:01:13]} 31. Rdf1 {[%clk 0:01:10]}  Qe7 {[%clk 0:01:10]} 32. Rd2 {[%clk 0:01:01]}  Qc7 {[%clk 0:01:08]} 33. h4 {[%clk 0:01:00]}  Qc6 {[%clk 0:01:00]} 34. Bh3 {[%clk 0:00:47]}  Qxd5 {[%clk 0:00:59]} 35. Rxd5 {[%clk 0:00:47]}  R6e7 {[%clk 0:00:49]} 36. Rxd6 {[%clk 0:00:47]}  Nc6 {[%clk 0:00:49]} 37. Bg2 {[%clk 0:00:48]}  Be5 {[%clk 0:00:47]} 38. Rd2 {[%clk 0:00:45]}  Kg7 {[%clk 0:00:45]} 39. Rfd1 {[%clk 0:00:39]}  a5 {[%clk 0:00:42]} 40. a3 {[%clk 0:00:33]}  Rc7 {[%clk 0:00:30]} 41. Kg1 {[%clk 0:00:25]}  Ree7 {[%clk 0:00:30]} 42. Rd5 {[%clk 0:00:22]}  f6 {[%clk 0:00:29]} 43. Kf2 {[%clk 0:00:21]}  g5 {[%clk 0:00:29]} 44. Be3 {[%clk 0:00:22]}  Rf7 {[%clk 0:00:20]} 45. Bh3 {[%clk 0:00:19]}  Ne7 {[%clk 0:00:13]} 46. Rxa5 {[%clk 0:00:17]}  gxh4 {[%clk 0:00:13]} 47. gxh4 {[%clk 0:00:17]}  Ng6 {[%clk 0:00:13]} 48. Rg1 {[%clk 0:00:17]} 1-0


[Site "https://www.chess.com"]

[Event "Titled Tuesday Blitz March 14 Early 2023"]
[White "Bachmann, Axel"]
[Black "Firouzja, Alireza"]
[WhiteFideId "3700488"]
[BlackFideId "12573981"]
[WhiteElo "2605"]
[BlackElo "2904"]
[Result "1-0"]
[Round "03"]
[TimeControl "180+2"]
[Date "2023.03.14"]
[WhiteClock "0:00:05"]
[BlackClock "0:00:05"]

1. Nf3 {[%clk 0:03:00]}  Nf6 {[%clk 0:03:00]} 2. c4 {[%clk 0:03:00]}  g6 {[%clk 0:03:00]} 3. b3 {[%clk 0:02:59]}  Bg7 {[%clk 0:03:01]} 4. Bb2 {[%clk 0:03:00]}  O-O {[%clk 0:03:02]} 5. g3 {[%clk 0:03:01]}  d6 {[%clk 0:03:02]} 6. d4 {[%clk 0:03:01]}  Nbd7 {[%clk 0:03:03]} 7. Bg2 {[%clk 0:03:01]}  c6 {[%clk 0:03:04]} 8. O-O {[%clk 0:02:58]}  Re8 {[%clk 0:03:04]} 9. Nc3 {[%clk 0:02:53]}  e5 {[%clk 0:03:04]} 10. e3 {[%clk 0:02:52]}  e4 {[%clk 0:02:53]} 11. Nd2 {[%clk 0:02:51]}  d5 {[%clk 0:02:53]} 12. b4 {[%clk 0:02:49]}  Nb6 {[%clk 0:02:48]} 13. b5 {[%clk 0:02:42]}  Bg4 {[%clk 0:02:39]} 14. Qb3 {[%clk 0:02:38]}  Qd7 {[%clk 0:02:38]} 15. a4 {[%clk 0:02:33]}  Nc8 {[%clk 0:02:31]} 16. a5 {[%clk 0:02:27]}  a6 {[%clk 0:02:01]} 17. cxd5 {[%clk 0:02:17]}  cxd5 {[%clk 0:01:58]} 18. Ba3 {[%clk 0:02:09]}  Bh3 {[%clk 0:01:52]} 19. Nxd5 {[%clk 0:01:58]}  Bxg2 {[%clk 0:01:28]} 20. Nxf6+ {[%clk 0:01:58]}  Bxf6 {[%clk 0:01:29]} 21. Kxg2 {[%clk 0:01:58]}  axb5 {[%clk 0:01:30]} 22. Bc5 {[%clk 0:01:54]}  Bd8 {[%clk 0:01:28]} 23. Qc2 {[%clk 0:01:29]}  Qc6 {[%clk 0:01:12]} 24. Nb3 {[%clk 0:01:23]}  Ne7 {[%clk 0:01:11]} 25. Rfc1 {[%clk 0:01:13]}  Nd5 {[%clk 0:01:09]} 26. Qe2 {[%clk 0:01:14]}  Qd7 {[%clk 0:01:04]} 27. Bb6 {[%clk 0:00:57]}  Nxb6 {[%clk 0:00:48]} 28. Nc5 {[%clk 0:00:56]}  Qc6 {[%clk 0:00:43]} 29. axb6 {[%clk 0:00:48]}  Rxa1 {[%clk 0:00:44]} 30. Rxa1 {[%clk 0:00:47]}  Bxb6 {[%clk 0:00:45]} 31. Rc1 {[%clk 0:00:41]}  b4 {[%clk 0:00:41]} 32. Qc4 {[%clk 0:00:29]}  Bxc5 {[%clk 0:00:41]} 33. Qxc5 {[%clk 0:00:30]}  Rc8 {[%clk 0:00:30]} 34. Rc4 {[%clk 0:00:28]}  Qxc5 {[%clk 0:00:19]} 35. dxc5 {[%clk 0:00:29]}  b3 {[%clk 0:00:15]} 36. Rxe4 {[%clk 0:00:29]}  Rxc5 {[%clk 0:00:14]} 37. Rb4 {[%clk 0:00:30]}  b5 {[%clk 0:00:08]} 38. Rxb3 {[%clk 0:00:29]}  Kf8 {[%clk 0:00:09]} 39. Kf3 {[%clk 0:00:25]}  Ke7 {[%clk 0:00:09]} 40. Ke4 {[%clk 0:00:26]}  Kd6 {[%clk 0:00:09]} 41. Kd3 {[%clk 0:00:24]}  Kc6 {[%clk 0:00:09]} 42. e4 {[%clk 0:00:18]}  Rc1 {[%clk 0:00:08]} 43. Kd4 {[%clk 0:00:16]}  Rd1+ {[%clk 0:00:07]} 44. Ke5 {[%clk 0:00:13]}  Rd2 {[%clk 0:00:07]} 45. f4 {[%clk 0:00:11]}  Rd7 {[%clk 0:00:03]} 46. Kf6 {[%clk 0:00:08]}  Kc5 {[%clk 0:00:03]} 47. Rb1 {[%clk 0:00:07]}  b4 {[%clk 0:00:03]} 48. e5 {[%clk 0:00:07]}  Kc4 {[%clk 0:00:03]} 49. g4 {[%clk 0:00:08]}  Rd4 {[%clk 0:00:02]} 50. f5 {[%clk 0:00:06]}  Rxg4 {[%clk 0:00:03]} 51. Kxf7 {[%clk 0:00:06]}  gxf5 {[%clk 0:00:03]} 52. e6 {[%clk 0:00:07]}  Re4 {[%clk 0:00:03]} 53. e7 {[%clk 0:00:07]}  f4 {[%clk 0:00:03]} 54. e8=Q {[%clk 0:00:06]}  Rxe8 {[%clk 0:00:04]} 55. Kxe8 {[%clk 0:00:07]}  Kd3 {[%clk 0:00:04]} 56. Rxb4 {[%clk 0:00:07]}  f3 {[%clk 0:00:04]} 57. Kf7 {[%clk 0:00:05]}  f2 {[%clk 0:00:03]} 58. Rf4 {[%clk 0:00:05]}  Ke3 {[%clk 0:00:04]} 59. Rf6 {[%clk 0:00:05]}  Ke2 {[%clk 0:00:05]} 60. h4 {[%clk 0:00:05]}  f1=Q {[%clk 0:00:04]} 61. Rxf1 {[%clk 0:00:05]}  Kxf1 {[%clk 0:00:05]} 62. h5 {[%clk 0:00:05]} 1-0


[Site "https://www.chess.com"]

[Event "Titled Tuesday Blitz March 14 Early 2023"]
[White "Wei, Yi"]
[Black "Salinas Herrera, Pablo"]
[WhiteFideId "8603405"]
[BlackFideId "3407128"]
[WhiteElo "2686"]
[BlackElo "2550"]
[Result "1-0"]
[Round "03"]
[TimeControl "180+2"]
[Date "2023.03.14"]
[WhiteClock "0:00:03"]
[BlackClock "0:00:05"]

1. b3 {[%clk 0:03:00]}  d5 {[%clk 0:02:59]} 2. Bb2 {[%clk 0:02:59]}  Bf5 {[%clk 0:02:59]} 3. d3 {[%clk 0:02:57]}  e6 {[%clk 0:02:54]} 4. Nd2 {[%clk 0:02:57]}  Nf6 {[%clk 0:02:52]} 5. g3 {[%clk 0:02:57]}  h6 {[%clk 0:02:52]} 6. Bg2 {[%clk 0:02:58]}  Bh7 {[%clk 0:02:53]} 7. Ngf3 {[%clk 0:02:58]}  Be7 {[%clk 0:02:53]} 8. O-O {[%clk 0:02:58]}  O-O {[%clk 0:02:54]} 9. Re1 {[%clk 0:02:56]}  c6 {[%clk 0:02:54]} 10. e4 {[%clk 0:02:56]}  a5 {[%clk 0:02:54]} 11. a3 {[%clk 0:02:56]}  Nbd7 {[%clk 0:02:53]} 12. Qe2 {[%clk 0:02:50]}  b5 {[%clk 0:02:51]} 13. Nd4 {[%clk 0:02:14]}  Qb6 {[%clk 0:02:48]} 14. exd5 {[%clk 0:01:32]}  cxd5 {[%clk 0:02:48]} 15. Bh3 {[%clk 0:01:29]}  Bc5 {[%clk 0:02:23]} 16. N2f3 {[%clk 0:01:16]}  b4 {[%clk 0:01:48]} 17. a4 {[%clk 0:01:11]}  Rfe8 {[%clk 0:01:48]} 18. Nb5 {[%clk 0:01:08]}  Rac8 {[%clk 0:01:44]} 19. Rac1 {[%clk 0:00:59]}  Rcd8 {[%clk 0:01:06]} 20. Qd2 {[%clk 0:00:57]}  Bg6 {[%clk 0:00:41]} 21. Ne5 {[%clk 0:00:49]}  Nxe5 {[%clk 0:00:41]} 22. Bxe5 {[%clk 0:00:49]}  Nd7 {[%clk 0:00:42]} 23. Bc7 {[%clk 0:00:48]}  Qa6 {[%clk 0:00:39]} 24. Bxd8 {[%clk 0:00:40]}  Rxd8 {[%clk 0:00:40]} 25. Nc7 {[%clk 0:00:40]}  Qb7 {[%clk 0:00:24]} 26. Nb5 {[%clk 0:00:40]}  Qb6 {[%clk 0:00:18]} 27. Re2 {[%clk 0:00:37]}  Nf6 {[%clk 0:00:18]} 28. Rce1 {[%clk 0:00:32]}  Bh5 {[%clk 0:00:18]} 29. Re5 {[%clk 0:00:32]}  Bg6 {[%clk 0:00:17]} 30. Rf1 {[%clk 0:00:21]}  Qb8 {[%clk 0:00:16]} 31. Ree1 {[%clk 0:00:20]}  Bf8 {[%clk 0:00:17]} 32. Kh1 {[%clk 0:00:20]}  Nd7 {[%clk 0:00:17]} 33. f4 {[%clk 0:00:20]}  Nf6 {[%clk 0:00:17]} 34. f5 {[%clk 0:00:20]}  exf5 {[%clk 0:00:18]} 35. Bxf5 {[%clk 0:00:21]}  Bh5 {[%clk 0:00:18]} 36. Qf4 {[%clk 0:00:21]}  Qb6 {[%clk 0:00:18]} 37. g4 {[%clk 0:00:20]}  Bg6 {[%clk 0:00:17]} 38. Bxg6 {[%clk 0:00:21]}  fxg6 {[%clk 0:00:18]} 39. g5 {[%clk 0:00:20]}  hxg5 {[%clk 0:00:18]} 40. Qxg5 {[%clk 0:00:20]}  Rc8 {[%clk 0:00:18]} 41. Qxg6 {[%clk 0:00:18]}  Rxc2 {[%clk 0:00:18]} 42. Rg1 {[%clk 0:00:10]}  Qf2 {[%clk 0:00:17]} 43. Qg2 {[%clk 0:00:10]}  Qc5 {[%clk 0:00:18]} 44. d4 {[%clk 0:00:10]}  Qc8 {[%clk 0:00:17]} 45. Re2 {[%clk 0:00:10]}  Rxe2 {[%clk 0:00:14]} 46. Qxe2 {[%clk 0:00:10]}  Ne4 {[%clk 0:00:15]} 47. Qg2 {[%clk 0:00:05]}  Qf5 {[%clk 0:00:14]} 48. Rf1 {[%clk 0:00:06]}  Qh5 {[%clk 0:00:13]} 49. Nc7 {[%clk 0:00:05]}  Bd6 {[%clk 0:00:13]} 50. Ne6 {[%clk 0:00:03]}  Ng3+ {[%clk 0:00:13]} 51. Kg1 {[%clk 0:00:03]}  Ne2+ {[%clk 0:00:12]} 52. Kf2 {[%clk 0:00:04]}  Qf5+ {[%clk 0:00:05]} 53. Kxe2 {[%clk 0:00:03]}  Qxe6+ {[%clk 0:00:06]} 54. Kd1 {[%clk 0:00:03]}  Be7 {[%clk 0:00:05]} 55. Qc2 {[%clk 0:00:03]}  Bf6 {[%clk 0:00:05]} 56. Qd3 {[%clk 0:00:03]}  Qg4+ {[%clk 0:00:05]} 57. Kc2 {[%clk 0:00:04]}  Qg2+ {[%clk 0:00:05]} 58. Kb1 {[%clk 0:00:03]}  Bxd4 {[%clk 0:00:03]} 59. Kc1 {[%clk 0:00:02]}  Qb2+ {[%clk 0:00:03]} 60. Kd1 {[%clk 0:00:03]}  Qa1+ {[%clk 0:00:04]} 61. Ke2 {[%clk 0:00:03]}  Qb2+ {[%clk 0:00:05]} 62. Qd2 {[%clk 0:00:03]} 1-0


[Site "https://www.chess.com"]

[Event "Titled Tuesday Blitz March 14 Early 2023"]
[White "Zhigalko, Sergei"]
[Black "Yu, Yangyi"]
[WhiteFideId "13502956"]
[BlackFideId "8603820"]
[WhiteElo "2626"]
[BlackElo "2783"]
[Result "0-1"]
[Round "03"]
[TimeControl "180+2"]
[Date "2023.03.14"]
[WhiteClock "0:00:03"]
[BlackClock "0:00:02"]

1. e4 {[%clk 0:03:00]}  d6 {[%clk 0:02:59]} 2. d4 {[%clk 0:03:01]}  Nf6 {[%clk 0:02:59]} 3. Nc3 {[%clk 0:03:01]}  e5 {[%clk 0:03:00]} 4. Nf3 {[%clk 0:03:02]}  Nbd7 {[%clk 0:03:00]} 5. Bc4 {[%clk 0:03:02]}  Be7 {[%clk 0:03:00]} 6. O-O {[%clk 0:03:03]}  O-O {[%clk 0:03:00]} 7. a4 {[%clk 0:03:03]}  c6 {[%clk 0:02:59]} 8. Re1 {[%clk 0:03:04]}  h6 {[%clk 0:02:59]} 9. h3 {[%clk 0:03:03]}  Re8 {[%clk 0:02:59]} 10. Ba2 {[%clk 0:03:00]}  Bf8 {[%clk 0:02:57]} 11. Be3 {[%clk 0:02:58]}  exd4 {[%clk 0:02:52]} 12. Bxd4 {[%clk 0:02:58]}  Qc7 {[%clk 0:02:48]} 13. Nh4 {[%clk 0:02:28]}  Qd8 {[%clk 0:02:13]} 14. Ng6 {[%clk 0:02:16]}  a6 {[%clk 0:01:34]} 15. Qd2 {[%clk 0:02:02]}  b5 {[%clk 0:00:46]} 16. axb5 {[%clk 0:02:01]}  cxb5 {[%clk 0:00:44]} 17. Nxf8 {[%clk 0:01:31]}  Rxf8 {[%clk 0:00:38]} 18. Qf4 {[%clk 0:01:04]}  Qc7 {[%clk 0:00:23]} 19. Nd5 {[%clk 0:00:35]}  Nxd5 {[%clk 0:00:22]} 20. Bxd5 {[%clk 0:00:36]}  Bb7 {[%clk 0:00:17]} 21. Bxb7 {[%clk 0:00:30]}  Qxb7 {[%clk 0:00:17]} 22. Qxd6 {[%clk 0:00:30]}  Rfe8 {[%clk 0:00:18]} 23. Rad1 {[%clk 0:00:25]}  Re6 {[%clk 0:00:14]} 24. Qg3 {[%clk 0:00:14]}  Rg6 {[%clk 0:00:13]} 25. Qd3 {[%clk 0:00:14]}  Nf8 {[%clk 0:00:11]} 26. f3 {[%clk 0:00:11]}  Rd8 {[%clk 0:00:10]} 27. Qe2 {[%clk 0:00:10]}  Ne6 {[%clk 0:00:05]} 28. Be3 {[%clk 0:00:10]}  Rc8 {[%clk 0:00:05]} 29. c3 {[%clk 0:00:10]}  a5 {[%clk 0:00:05]} 30. Rd5 {[%clk 0:00:09]}  b4 {[%clk 0:00:05]} 31. Rb5 {[%clk 0:00:10]}  Qc7 {[%clk 0:00:04]} 32. cxb4 {[%clk 0:00:09]}  axb4 {[%clk 0:00:05]} 33. Rxb4 {[%clk 0:00:10]}  Qg3 {[%clk 0:00:04]} 34. Kh1 {[%clk 0:00:05]}  Rc2 {[%clk 0:00:04]} 35. Qxc2 {[%clk 0:00:03]}  Qxe1+ {[%clk 0:00:03]} 36. Bg1 {[%clk 0:00:04]}  Qxb4 {[%clk 0:00:03]} 37. Qc8+ {[%clk 0:00:05]}  Qf8 {[%clk 0:00:04]} 38. Qd7 {[%clk 0:00:05]}  Qd8 {[%clk 0:00:03]} 39. Qc6 {[%clk 0:00:05]}  Qd2 {[%clk 0:00:02]} 40. Qe8+ {[%clk 0:00:05]}  Kh7 {[%clk 0:00:03]} 41. g4 {[%clk 0:00:04]}  Qf4 {[%clk 0:00:03]} 42. Kg2 {[%clk 0:00:04]}  Ng5 {[%clk 0:00:03]} 43. Bf2 {[%clk 0:00:01]}  Qxf3+ {[%clk 0:00:02]} 44. Kg1 {[%clk 0:00:02]}  Nxh3+ {[%clk 0:00:03]} 45. Kf1 {[%clk 0:00:03]}  Qxf2# {[%clk 0:00:02]} 0-1


[Site "https://www.chess.com"]